bitfinex/quotes_ETHUSD_20250517
["timestamp","ask_amount","ask_price","bid_price","bid_amount"]
[1747497013551,7.685,2474.0,2473.8,4.8173728]
[1747497013922,7.685,2474.0,2473.8,0.7751]
[1747497014124,7.685,2474.0,2473.8,4.81746296]
[1747497015373,7.685,2474.0,2473.8,0.7751]
[1747497015772,8.07555611,2474.5,2473.8,9.16787705]
[1747497016093,4.04163892,2474.3,2473.8,13.21016709]
[1747497016295,7.685,2474.4,2473.8,8.94350172]
[1747497016596,4.04206579,2474.0,2473.8,8.94350172]
[1747497017666,4.0419592,2474.1,2473.8,8.94350172]
[1747497018698,11.7259592,2474.1,2473.8,8.94350172]
[1747497019098,4.04204707,2474.0,2473.8,8.94350172]
[1747497019598,4.04204707,2474.0,2473.8,8.16840172]
[1747497020396,4.04220057,2473.9,2473.8,8.16840172]
[1747497021077,11.7259478,2474.1,2473.8,8.16840172]
[1747497021277,4.04204115,2474.0,2473.8,7.686]
[1747497021678,4.04220057,2473.9,2473.8,7.686]
[1747497021990,7.683,2474.0,2473.8,7.686]
[1747497022368,4.04220057,2473.9,2473.8,7.686]
[1747497022568,7.683,2474.0,2473.8,7.686]
[1747497023402,7.683,2474.0,2473.6,5.27790951]
[1747497023606,11.72504748,2474.0,2473.6,5.27790951]
[1747497024463,4.04227308,2473.9,2473.6,1.23530172]
[1747497024691,11.72519449,2474.0,2473.6,1.23530172]
[1747497024998,4.04229283,2473.9,2473.6,1.23530172]
[1747497025164,4.04229283,2473.9,2473.7,0.48240172]
[1747497026397,4.04236397,2473.8,2473.7,0.48240172]
[1747497026606,4.04227853,2473.9,2473.7,0.48240172]
[1747497026805,4.04236397,2473.8,2473.7,0.48240172]
[1747497026989,4.04231375,2473.9,2473.7,0.48240172]
[1747497027502,4.04231375,2473.9,2473.6,0.48240172]
[1747497027903,4.0423704,2473.8,2473.6,0.48240172]
[1747497031218,4.0423704,2473.8,2473.5,8.16840172]
[1747497031514,4.04229239,2473.9,2473.5,8.16840172]
[1747497031719,4.04229239,2473.9,2473.5,9.65402029]
[1747497031921,4.04238087,2473.8,2473.5,9.65402029]
[1747497032921,4.0422595,2473.9,2473.5,13.69687224]
[1747497033225,11.72320066,2473.9,2473.5,13.69687224]
[1747497033519,11.72320066,2473.9,2473.5,9.65402029]
[1747497035230,11.72320066,2473.9,2473.5,13.69687301]
[1747497035414,11.72320066,2473.9,2473.5,9.65402029]
[1747497036019,11.72320066,2473.9,2473.5,13.69681119]
[1747497036328,11.72329864,2473.9,2473.5,9.65402029]
[1747497036502,7.681,2473.9,2473.5,9.65402029]
[1747497036891,4.04239076,2473.8,2473.5,9.65402029]
[1747497040748,11.72227509,2473.9,2473.5,9.65402029]
[1747497040959,11.72227509,2473.9,2473.6,0.48240172]
[1747497040960,4.04242761,2473.8,2473.6,0.48240172]
[1747497042359,7.679,2473.9,2473.7,0.8177]
[1747497042734,11.72120325,2473.9,2473.7,0.8177]
[1747497043657,11.72125752,2473.9,2473.7,0.8177]
[1747497044056,4.04236397,2473.8,2473.7,0.8177]
[1747497044244,4.04236397,2473.8,2473.6,0.48240172]
[1747497045133,11.72129899,2473.9,2473.6,0.48240172]
[1747497045333,4.04229899,2473.9,2473.6,0.48240172]
[1747497046247,4.04236584,2473.8,2473.6,0.48240172]
[1747497052060,11.72011092,2474.0,2473.6,0.48240172]
[1747497053925,7.678,2474.0,2473.6,4.52507678]
[1747497054261,11.72005719,2474.0,2473.6,0.48240172]
[1747497055062,7.678,2474.0,2473.6,0.48240172]
[1747497055264,7.678,2474.0,2473.6,4.52501811]
[1747497056273,4.04189741,2474.1,2473.6,4.52501811]
[1747497056441,7.675,2474.0,2473.6,4.52501811]
[1747497056843,4.04189741,2474.1,2473.6,4.52501811]
[1747497057043,4.04187381,2474.1,2473.6,4.52501811]
[1747497057238,7.675,2474.0,2473.6,4.52501811]
[1747497057445,11.71707594,2474.0,2473.6,4.52501811]
[1747497059056,7.675,2474.0,2473.6,4.52501811]
[1747497059677,7.675,2474.0,2473.6,0.48240172]
[1747497059887,7.675,2474.0,2473.6,4.52501418]
[1747497060988,11.71704199,2474.0,2473.6,4.52501418]
[1747497061170,7.675,2474.0,2473.7,4.04242737]
[1747497061487,7.675,2474.0,2473.6,4.52501418]
[1747497061488,7.673,2473.9,2473.6,4.52499961]
[1747497063248,4.04187381,2474.1,2473.7,0.48240172]
[1747497063449,8.07555611,2474.5,2473.8,0.55]
[1747497063644,12.1167949,2474.5,2474.0,4.04194492]
[1747497063955,8.07555611,2474.5,2474.0,7.679]
[1747497064162,4.04145284,2474.4,2474.0,7.679]
[1747497064547,12.89756194,2474.5,2474.0,7.679]
[1747497064751,12.89756194,2474.5,2474.0,11.72101761]
[1747497065888,12.89756194,2474.5,2474.0,12.20341933]
[1747497066088,4.04139604,2474.4,2474.0,12.20341933]
[1747497066587,12.89756932,2474.5,2474.0,12.20341933]
[1747497067867,8.85625611,2474.5,2474.0,8.16140172]
[1747497068068,8.07555611,2474.5,2474.0,9.5811215]
[1747497068270,0.7807,2474.7,2474.3,4.04145962]
[1747497068589,7.671,2474.6,2474.3,4.04145962]
[1747497068750,7.671,2474.6,2474.2,4.04162683]
[1747497069255,4.04090486,2474.7,2474.2,4.04162683]
[1747497069455,0.7807,2474.5,2474.0,0.48240172]
[1747497069655,4.82257381,2474.1,2474.0,0.48240172]
[1747497069893,12.49257381,2474.1,2474.0,0.48240172]
[1747497071267,0.7807,2474.4,2474.0,0.48240172]
[1747497071495,7.67,2474.1,2474.0,0.48240172]
[1747497071677,11.71187381,2474.1,2474.0,0.48240172]
[1747497071882,12.49257381,2474.1,2474.0,0.48240172]
[1747497072078,4.04237036,2473.8,2473.6,0.48240172]
[1747497073184,0.5,2473.9,2473.6,0.48240172]
[1747497073383,7.67,2473.7,2473.6,0.48240172]
[1747497074603,7.67,2473.7,2473.5,0.48240172]
[1747497075283,7.67,2473.7,2473.5,4.52523292]
[1747497075862,7.67,2473.7,2473.5,0.48240172]
[1747497076090,7.67,2473.7,2473.5,4.5252129]
[1747497077191,7.67,2473.7,2473.5,0.48240172]
[1747497080602,7.669,2473.7,2473.5,0.48240172]
[1747497080969,11.71156303,2473.7,2473.5,0.48240172]
[1747497081591,4.04269081,2473.6,2473.5,0.48240172]
[1747497081806,4.82089081,2473.6,2473.5,0.48240172]
[1747497082875,4.04308342,2473.4,2473.1,0.48240172]
[1747497083084,4.04308342,2473.4,2473.1,1.08160323]
[1747497083323,4.04293751,2473.5,2473.1,1.08160323]
[1747497083812,4.04260207,2473.7,2473.2,0.786]
[1747497084003,8.86215611,2474.0,2473.2,0.786]
[1747497084004,11.71070244,2473.6,2473.2,0.786]
[1747497084206,4.04286101,2473.5,2473.2,0.786]
[1747497085004,4.04318117,2473.3,2473.1,0.48240172]
[1747497085317,4.04309658,2473.4,2473.1,0.48240172]
[1747497085616,4.04309658,2473.4,2473.0,1.26840172]
[1747497085822,4.04309658,2473.4,2473.0,2.68594532]
[1747497086435,4.042975,2473.5,2473.0,6.7295609]
[1747497086595,4.04285425,2473.5,2473.0,6.7295609]
[1747497086925,4.0430086,2473.5,2473.0,2.68594532]
[1747497087131,4.04309313,2473.4,2473.0,2.68594532]
[1747497087327,4.04309313,2473.4,2473.1,0.6729717]
[1747497087532,4.04309313,2473.4,2473.0,2.68594532]
[1747497089023,4.04309313,2473.4,2473.0,2.2035436]
[1747497090846,4.04309313,2473.4,2473.0,6.24721491]
[1747497091051,4.04292672,2473.5,2473.0,6.24721491]
[1747497091553,4.04292672,2473.5,2473.0,6.72961663]
[1747497091848,7.667,2473.4,2473.0,6.72961663]
[1747497092046,11.71003065,2473.4,2473.0,6.72961663]
[1747497093750,11.71003065,2473.4,2473.0,6.24721491]
[1747497093949,11.71003065,2473.4,2473.1,0.67296166]
[1747497094444,4.04303065,2473.4,2473.1,0.67296166]
[1747497094749,7.667,2473.3,2473.1,0.67296166]
[1747497096836,4.04293498,2473.5,2473.1,0.67296166]
[1747497097041,7.666,2473.3,2473.1,0.67296166]
[1747497098367,4.04298818,2473.5,2473.1,0.67296166]
[1747497098536,7.666,2473.3,2473.1,4.71645646]
[1747497098723,0.7713,2473.9,2473.3,0.8078]
[1747497099043,7.666,2473.8,2473.4,0.55]
[1747497099242,7.666,2473.8,2473.3,8.4788]
[1747497099557,4.04265485,2473.7,2473.3,8.4788]
[1747497100334,4.04265485,2473.7,2473.3,10.19035319]
[1747497100533,4.04265485,2473.7,2473.3,14.23347552]
[1747497100731,4.04287228,2473.5,2473.2,8.15340172]
[1747497100945,4.04252738,2473.7,2473.2,4.52573366]
[1747497101149,7.666,2473.8,2473.2,0.48240172]
[1747497101755,4.04281295,2473.6,2473.2,0.48240172]
[1747497101940,4.04281295,2473.6,2473.2,2.25154702]
[1747497102352,4.04252738,2473.7,2473.2,2.25154702]
[1747497102353,4.04287236,2473.5,2473.2,2.25154702]
[1747497103192,4.04262541,2473.7,2473.2,6.29481758]
[1747497103570,7.665,2473.6,2473.2,6.29481758]
[1747497103878,8.07555611,2474.0,2473.7,0.764]
[1747497103879,12.11772438,2474.0,2473.7,0.764]
[1747497104075,7.665,2473.9,2473.7,0.764]
[1747497105173,12.11765796,2474.0,2473.7,0.764]
[1747497105378,7.665,2473.9,2473.7,0.764]
[1747497108505,8.07555611,2474.0,2473.8,4.04228099]
[1747497108677,7.664,2474.0,2473.7,2.05942218]
[1747497108993,7.664,2474.0,2473.7,6.10183185]
[1747497109398,4.04162116,2474.3,2473.9,0.55]
[1747497109609,7.664,2474.3,2473.9,0.55]
[1747497109787,7.664,2474.3,2474.0,0.8162]
[1747497110302,12.96491803,2474.5,2474.1,4.04187381]
[1747497110502,7.663,2474.4,2474.1,4.04174386]
[1747497110661,7.663,2474.4,2474.2,4.04169717]
[1747497111011,7.663,2474.4,2474.2,0.8162]
[1747497111294,8.4574,2474.4,2474.0,0.8162]
[1747497111497,4.04169571,2474.3,2473.9,7.664]
[1747497111686,4.04169571,2474.3,2473.9,13.41092512]
[1747497111884,7.663,2474.3,2473.9,9.36873166]
[1747497112077,7.663,2474.3,2473.9,13.41086626]
[1747497112699,7.663,2474.3,2474.0,4.0420279]
[1747497112901,7.663,2474.3,2473.9,13.41087328]
[1747497113415,8.93059137,2474.5,2474.0,1.57446346]
[1747497113566,12.55136192,2474.5,2474.1,4.85744379]
[1747497113767,4.88936192,2474.5,2474.2,4.04164092]
[1747497113969,11.70307546,2474.6,2474.2,4.04164092]
[1747497114191,11.70307546,2474.6,2474.1,4.85739587]
[1747497114505,16.87865611,2474.9,2474.3,0.55]
[1747497114506,7.662,2474.7,2474.3,0.55]
[1747497114704,7.662,2474.7,2474.4,4.85689197]
[1747497115075,7.662,2474.8,2474.4,0.8156]
[1747497115274,7.662,2474.8,2474.4,4.85690166]
[1747497115693,8.07555611,2474.9,2474.5,11.7051826]
[1747497115899,8.07555611,2474.9,2474.5,13.41639103]
[1747497117978,12.1161513,2474.9,2474.5,9.37520843]
[1747497118177,12.1161513,2474.9,2474.3,8.213]
[1747497118178,4.04098038,2474.7,2474.3,8.213]
[1747497118394,4.04114308,2474.6,2474.3,8.213]
[1747497118676,4.04097666,2474.7,2474.3,8.213]
[1747497119699,4.04107055,2474.6,2474.3,8.213]
[1747497119880,4.04107055,2474.6,2474.0,23.07149273]
[1747497119881,8.87865611,2474.9,2474.0,19.02946346]
[1747497120215,4.04151094,2474.4,2474.1,7.663]
[1747497120395,4.04151094,2474.4,2474.1,10.92125297]
[1747497120713,11.70026445,2474.5,2473.9,0.48240172]
[1747497120714,12.50339013,2474.5,2473.9,0.48240172]
[1747497120923,4.04203718,2474.0,2473.9,0.48240172]
[1747497121130,12.50413718,2474.0,2473.9,0.48240172]
[1747497121298,4.04220057,2473.9,2473.8,0.48240172]
[1747497124898,4.84530057,2473.9,2473.8,0.48240172]
[1747497125428,12.50430057,2473.9,2473.8,0.48240172]
[1747497125629,12.50430057,2473.9,2473.3,0.55]
[1747497125630,8.4621,2473.9,2473.3,0.55]
[1747497125916,4.04280233,2473.6,2473.3,1.30720435]
[1747497126308,4.04288066,2473.5,2473.3,1.30720435]
[1747497126514,4.0430177,2473.4,2473.3,1.30720435]
[1747497127000,4.0430177,2473.4,2473.1,0.8156]
[1747497127204,11.70214106,2473.4,2473.1,0.8156]
[1747497127706,4.04333284,2473.3,2473.0,8.14540172]
[1747497128127,11.70205548,2473.4,2473.0,8.14540172]
[1747497128128,4.04337694,2473.2,2473.0,8.14540172]
[1747497128767,4.04327489,2473.3,2473.0,8.14540172]
[1747497128934,4.04336301,2473.2,2473.0,0.48240172]
[1747497129340,4.04336301,2473.2,2473.0,0.59852023]
[1747497129639,4.04326659,2473.3,2473.0,0.59852023]
[1747497130764,11.70202793,2473.4,2473.0,0.59852023]
[1747497130923,4.04367165,2473.0,2472.7,0.48240172]
[1747497131128,4.04367165,2473.0,2472.7,1.31450172]
[1747497131668,4.04358449,2473.1,2472.7,1.31450172]
[1747497132245,4.04380566,2473.0,2472.7,1.31450172]
[1747497132636,4.04380566,2473.0,2472.7,3.99911863]
[1747497133641,4.04352241,2473.1,2472.7,3.99911863]
[1747497133843,4.04374784,2473.0,2472.7,3.99911863]
[1747497134053,7.66,2473.0,2472.7,8.04319539]
[1747497134358,7.66,2473.1,2472.8,4.59399425]
[1747497134555,7.66,2473.1,2472.9,0.85931129]
[1747497134737,11.70351781,2473.1,2472.9,0.85931129]
[1747497135734,11.70355247,2473.1,2472.9,0.85931129]
[1747497136447,7.66,2473.1,2472.7,3.99911863]
[1747497136961,7.66,2473.1,2472.7,8.04324911]
[1747497137147,4.04341729,2473.2,2472.7,8.04324911]
[1747497137354,4.04341729,2473.2,2472.8,4.59396684]
[1747497137549,4.04341729,2473.2,2472.9,0.85930855]
[1747497137756,0.8031,2473.5,2473.0,0.8114]
[1747497137960,12.11833272,2473.6,2473.1,4.63389487]
[1747497138265,12.11833272,2473.6,2473.2,4.04331568]
[1747497138432,11.70277661,2473.6,2473.3,0.7948]
[1747497139246,4.04287949,2473.5,2473.3,0.7948]
[1747497140470,4.0430177,2473.4,2473.3,0.7948]
[1747497142166,4.0434738,2473.2,2472.9,0.85930855]
[1747497142365,4.0434738,2473.2,2473.0,7.66]
[1747497142542,4.04350814,2473.1,2473.0,8.59141086]
[1747497142735,4.04350814,2473.1,2473.0,0.93141086]
[1747497142937,4.04367165,2473.0,2472.9,1.65410855]
[1747497143438,4.04359717,2473.1,2472.9,1.65410855]
[1747497143639,4.04366266,2473.1,2472.9,1.65410855]
[1747497145175,4.04367165,2473.0,2472.9,1.65410855]
[1747497146575,4.04359048,2473.1,2472.9,1.65410855]
[1747497147379,0.81,2473.5,2473.0,0.93141086]
[1747497147584,7.658,2473.2,2472.9,1.65410855]
[1747497147983,7.658,2473.2,2472.9,5.69785345]
[1747497148186,7.658,2473.2,2472.9,1.65410855]
[1747497148750,11.70135071,2473.2,2472.9,1.65410855]
[1747497148956,4.04354319,2473.1,2472.9,1.65410855]
[1747497149276,11.70143112,2473.2,2473.0,0.69245093]
[1747497149987,4.04352907,2473.1,2472.9,1.65410855]
[1747497151389,4.04367165,2473.0,2472.8,8.14240172]
[1747497151590,4.04367165,2473.0,2472.9,0.48240172]
[1747497152086,7.658,2473.2,2472.9,0.48240172]
[1747497152268,4.04363957,2473.1,2472.9,0.48240172]
[1747497153596,4.04367165,2473.0,2472.9,0.48240172]
[1747497155672,11.70067165,2473.0,2472.9,1.37922189]
[1747497155867,4.04356806,2473.1,2472.9,1.37922189]
[1747497156089,7.657,2473.0,2472.9,1.37922189]
[1747497156393,11.70067165,2473.0,2472.9,1.37922189]
[1747497156563,7.657,2473.0,2472.9,1.37922189]
[1747497156975,11.70067165,2473.0,2472.9,1.37922189]
[1747497157293,11.70067165,2473.0,2472.9,0.89682017]
[1747497158159,4.04367165,2473.0,2472.9,0.89682017]
[1747497158359,7.657,2473.0,2472.9,0.89682017]
[1747497159061,4.0431562,2473.4,2472.9,4.9405841]
[1747497159393,7.657,2473.5,2473.2,4.04333438]
[1747497159595,7.657,2473.5,2473.3,8.433]
[1747497160160,4.04260664,2473.7,2473.3,8.433]
[1747497160358,11.69960664,2473.7,2473.3,8.433]
[1747497160564,4.04206164,2474.0,2473.4,5.88881079]
[1747497160787,7.657,2474.1,2473.7,0.772]
[1747497160990,12.11729274,2474.2,2473.8,0.55]
[1747497161199,7.656,2474.1,2473.8,8.211]
[1747497162383,7.656,2474.1,2473.8,9.91781699]
[1747497162706,4.04183378,2474.2,2473.8,9.91781699]
[1747497163107,11.69761224,2474.3,2473.8,13.96016089]
[1747497163508,7.656,2474.3,2474.0,0.55]
[1747497164576,0.7991,2474.2,2473.7,0.48240172]
[1747497164771,4.04236397,2473.8,2473.7,0.48240172]
[1747497164976,11.69736397,2473.8,2473.7,0.48240172]
[1747497165593,7.655,2473.8,2473.7,0.48240172]
[1747497166625,11.69736397,2473.8,2473.7,0.48240172]
[1747497166922,7.654,2473.8,2473.6,4.59260814]
[1747497167127,4.04191639,2474.1,2473.7,0.91178539]
[1747497167302,7.654,2474.0,2473.7,0.91178539]
[1747497167889,11.6960584,2474.0,2473.7,0.91178539]
[1747497168087,0.7991,2474.2,2473.5,8.13740172]
[1747497168323,4.04204526,2474.0,2473.5,8.13740172]
[1747497168692,4.04233239,2473.9,2473.5,8.13740172]
[1747497169222,4.0421235,2474.0,2473.5,12.18023867]
[1747497169426,7.654,2473.9,2473.5,12.18023867]
[1747497169623,7.654,2473.9,2473.6,7.49388744]
[1747497170688,7.654,2474.1,2473.7,1.3607]
[1747497171092,7.654,2474.1,2473.7,5.4031395]
[1747497171319,7.654,2474.1,2473.8,4.04226514]
[1747497171526,7.654,2474.1,2473.8,4.92768822]
[1747497171903,7.654,2474.1,2473.8,0.88542308]
[1747497172623,11.69588794,2474.1,2473.8,0.88542308]
[1747497173823,4.04188794,2474.1,2473.8,0.88542308]
[1747497174823,4.04187381,2474.1,2473.8,0.88542308]
[1747497177151,11.69474439,2474.2,2473.8,0.88542308]
[1747497177352,11.69474439,2474.2,2473.8,4.92777287]
[1747497177559,11.69474439,2474.2,2473.9,0.62884729]
[1747497178024,4.04187495,2474.1,2473.9,0.62884729]
[1747497178237,4.04187495,2474.1,2473.8,0.88542308]
[1747497180338,4.04177473,2474.2,2473.8,4.92770398]
[1747497180528,11.69361274,2474.3,2473.9,4.81548061]
[1747497180729,4.04161274,2474.3,2473.9,0.7733]
[1747497180912,11.69361274,2474.3,2473.9,1.80264671]
[1747497182010,7.652,2474.4,2474.1,4.0417393]
[1747497182229,7.652,2474.4,2474.2,0.7733]
[1747497182431,4.04129872,2474.5,2474.2,0.7733]
[1747497182602,11.69329872,2474.5,2474.2,0.7733]
[1747497182803,2.48321605,2474.7,2474.3,0.55]
[1747497183003,7.651,2474.8,2474.5,0.7733]
[1747497183234,11.69181858,2474.8,2474.5,0.7733]
[1747497183434,4.04090683,2474.7,2474.5,0.7733]
[1747497183637,4.04089384,2474.7,2474.5,0.7733]
[1747497183944,11.69180586,2474.8,2474.5,0.7733]
[1747497184110,4.04089476,2474.7,2474.5,0.7733]
[1747497185146,0.7769,2474.7,2474.1,7.653]
[1747497185344,4.0413035,2474.5,2474.1,8.59706467]
[1747497185547,0.7769,2474.7,2474.1,8.59706467]
[1747497185936,4.0414203,2474.4,2474.1,8.59706467]
[1747497186561,11.69130968,2474.5,2474.1,8.59706467]
[1747497186768,7.65,2474.5,2474.1,12.63893075]
[1747497186932,11.69126971,2474.5,2474.2,1.38796325]
[1747497187133,7.65,2474.5,2474.2,1.38796325]
[1747497187328,4.04169893,2474.3,2474.1,7.653]
[1747497187832,4.04187381,2474.1,2474.0,0.48240172]
[1747497188056,4.04179795,2474.2,2474.0,0.48240172]
[1747497188434,4.04179795,2474.2,2473.8,8.89370172]
[1747497188632,11.69179795,2474.2,2473.8,8.89370172]
[1747497188835,11.69179795,2474.2,2473.9,1.2936217]
[1747497191183,7.65,2474.2,2473.9,1.2936217]
[1747497191379,4.04143072,2474.4,2474.0,4.04203422]
[1747497191564,7.65,2474.3,2473.9,5.81814764]
[1747497192572,4.04143072,2474.4,2473.9,5.81814764]
[1747497192773,7.65,2474.3,2474.1,4.85581743]
[1747497192941,7.65,2474.4,2474.1,4.85581743]
[1747497194653,7.65,2474.4,2474.2,0.48240172]
[1747497198240,0.7537,2474.8,2474.3,0.55]
[1747497198443,11.68960863,2474.9,2474.5,4.59114182]
[1747497198852,7.649,2474.9,2474.5,4.59114182]
[1747497199075,11.68957743,2474.9,2474.5,4.59114182]
[1747497199277,11.68957743,2474.9,2474.5,0.55]
[1747497199875,11.68791435,2475.3,2474.7,4.85490014]
[1747497200088,11.68800941,2475.3,2474.8,0.55]
[1747497200289,4.04025057,2475.1,2474.8,0.55]
[1747497200491,0.7537,2475.2,2474.7,0.8141]
[1747497200696,4.04104753,2474.7,2474.6,0.48240172]
[1747497202945,12.44250175,2474.8,2474.6,0.48240172]
[1747497203146,4.04089384,2474.7,2474.6,0.48240172]
[1747497203559,11.68889384,2474.7,2474.6,0.48240172]
[1747497203889,11.68889384,2474.7,2474.3,17.93440172]
[1747497204073,11.68889384,2474.7,2474.3,21.09753871]
[1747497204269,11.68890082,2474.7,2474.3,21.09753871]
[1747497204475,4.04113135,2474.6,2474.3,21.09753871]
[1747497204683,4.04131939,2474.5,2474.3,17.93440172]
[1747497205382,7.648,2474.7,2474.3,17.93440172]
[1747497205596,4.04138376,2474.4,2474.3,0.48240172]
[1747497207151,4.79508376,2474.4,2474.3,0.48240172]
[1747497207358,4.04202068,2474.1,2473.8,0.48240172]
[1747497207581,11.68902068,2474.1,2473.8,3.10496212]
[1747497207948,4.04212257,2474.0,2473.8,3.10496212]
[1747497209192,4.04220057,2473.9,2473.8,0.48240172]
[1747497210068,4.04250853,2473.8,2473.5,0.48240172]
[1747497210398,4.04171806,2474.2,2473.5,0.48240172]
[1747497210399,4.04138376,2474.4,2473.6,4.85675075]
[1747497210584,4.04162704,2474.3,2473.9,0.8141]
[1747497210754,12.11687614,2474.5,2474.0,0.55]
[1747497210953,12.11687614,2474.5,2474.1,4.04184877]
[1747497211210,11.68820375,2474.6,2474.1,4.04184047]
[1747497211905,11.68820375,2474.6,2474.2,0.8141]
[1747497212060,11.68820375,2474.6,2474.2,1.75889775]
[1747497212266,4.040952,2474.7,2474.2,5.80058008]
[1747497212481,7.648,2474.6,2474.2,5.80058008]
[1747497213157,11.68907762,2474.6,2474.2,6.2829818]
[1747497213500,11.68907762,2474.6,2474.2,2.24129947]
[1747497214061,4.04127067,2474.5,2474.2,2.24129947]
[1747497214364,11.68914505,2474.6,2474.3,0.62831672]
[1747497214767,11.68914505,2474.6,2474.2,1.29650172]
[1747497215603,7.648,2474.6,2474.2,5.33813737]
[1747497215802,7.648,2474.6,2474.2,5.33812367]
[1747497216167,7.647,2474.6,2474.3,4.59144065]
[1747497216367,7.647,2474.6,2474.3,0.55]
[1747497216901,4.04080769,2474.8,2474.3,12.82936601]
[1747497217105,11.68773274,2474.8,2474.3,12.82928486]
[1747497217579,4.04089521,2474.7,2474.3,12.82928486]
[1747497219176,0.7537,2475.0,2474.3,12.82928486]
[1747497219177,8.07555611,2475.1,2474.7,4.04078642]
[1747497219377,7.647,2475.0,2474.5,0.59040849]
[1747497219682,11.68741253,2475.0,2474.6,4.04096937]
[1747497219992,4.04041253,2475.0,2474.6,4.04096937]
[1747497220196,4.04041253,2475.0,2474.6,4.9276591]
[1747497221306,4.04041253,2475.0,2474.6,0.88668973]
[1747497222816,19.76287651,2475.1,2474.6,4.92772349]
[1747497222992,4.04041494,2475.0,2474.6,4.92772349]
[1747497223394,4.04041494,2475.0,2474.7,7.648]
[1747497223889,4.04068798,2474.9,2474.7,7.648]
[1747497224127,4.04049713,2475.0,2474.7,7.648]
[1747497224929,4.04031796,2475.1,2474.6,0.88668973]
[1747497225120,4.80449549,2475.4,2474.8,0.7857]
[1747497225322,11.68603454,2475.3,2474.8,4.82630101]
[1747497225693,4.04003454,2475.3,2474.8,4.82630101]
[1747497226011,7.646,2475.2,2474.8,4.82630101]
[1747497226395,4.04003454,2475.3,2474.8,4.82630101]
[1747497226709,7.646,2475.2,2474.8,6.53171308]
[1747497227244,4.03977382,2475.4,2474.9,4.04049278]
[1747497227402,7.645,2475.3,2474.9,4.04049278]
[1747497227943,7.645,2475.3,2475.0,4.04039581]
[1747497228307,4.03977382,2475.4,2474.9,4.59050068]
[1747497228517,7.645,2475.3,2474.9,5.86007151]
[1747497229007,7.645,2475.3,2474.9,1.81957083]
[1747497229196,7.645,2475.3,2474.9,0.55]
[1747497229527,4.04015704,2475.2,2474.9,0.55]
[1747497230228,4.04007756,2475.2,2474.9,0.55]
[1747497231129,7.645,2475.2,2474.9,0.55]
[1747497231432,11.68492051,2475.3,2474.9,4.59050693]
[1747497231730,11.68492051,2475.3,2475.0,0.7081619]
[1747497233037,4.04015721,2475.2,2475.0,0.7081619]
[1747497233329,4.04015721,2475.2,2474.9,0.55]
[1747497233497,4.04014281,2475.2,2474.9,7.645]
[1747497236244,11.68501078,2475.3,2474.9,7.645]
[1747497236445,11.68401078,2475.3,2474.9,7.645]
[1747497236820,4.04011706,2475.2,2474.9,7.645]
[1747497237253,4.04029426,2475.1,2474.9,7.645]
[1747497237455,4.04030891,2475.1,2474.9,7.645]
[1747497238050,4.04013695,2475.2,2474.9,7.645]
[1747497240356,4.0398163,2475.4,2475.0,0.55]
[1747497240507,11.68300735,2475.3,2475.0,0.55]
[1747497240707,4.04010388,2475.2,2474.9,7.645]
[1747497240922,4.04032062,2475.1,2474.9,7.645]
[1747497241337,4.04047342,2475.0,2474.9,7.645]
[1747497241537,4.04047342,2475.0,2474.7,0.48240172]
[1747497241826,4.04056729,2474.9,2474.8,7.645]
[1747497242036,4.04073056,2474.8,2474.7,0.48240172]
[1747497242260,7.643,2474.9,2474.6,0.48240172]
[1747497242562,7.643,2474.9,2474.6,5.85797414]
[1747497243038,7.643,2474.9,2474.7,4.04087036]
[1747497243340,7.643,2475.0,2474.8,4.04070643]
[1747497243561,11.68309,2475.2,2474.9,1.344]
[1747497244536,4.0404886,2475.0,2474.8,7.644]
[1747497244712,4.04029111,2475.1,2474.8,8.12640172]
[1747497244922,4.03984632,2475.4,2474.9,4.59055811]
[1747497245258,11.68292568,2475.3,2475.0,0.794]
[1747497246256,4.0401617,2475.2,2475.0,0.794]
[1747497246558,4.0401617,2475.2,2474.9,8.195]
[1747497246870,4.04031088,2475.1,2474.9,8.12740172]
[1747497248633,4.04040404,2475.0,2474.9,0.48240172]
[1747497249964,4.04040404,2475.0,2474.6,8.12640172]
[1747497250168,8.4456,2475.3,2474.6,2.24960895]
[1747497250464,4.0404955,2475.0,2474.6,0.48240172]
[1747497250964,7.642,2474.9,2474.6,0.48240172]
[1747497251364,11.68257041,2474.9,2474.6,0.48240172]
[1747497252161,11.68257041,2474.9,2474.7,0.48240172]
[1747497252463,4.04073056,2474.8,2474.7,0.48240172]
[1747497254233,7.643,2474.8,2474.7,0.48240172]
[1747497254467,7.643,2474.8,2474.6,0.7794]
[1747497254663,7.643,2474.8,2474.6,1.26145448]
[1747497255867,11.68377079,2474.8,2474.6,1.26145448]
[1747497256038,11.68377079,2474.8,2474.6,0.7794]
[1747497257369,4.04052805,2475.0,2474.6,0.7794]
[1747497257572,7.642,2474.9,2474.6,0.7794]
[1747497258038,7.642,2474.9,2474.7,0.55]
[1747497258439,4.85715444,2475.2,2474.7,4.5908105]
[1747497258634,7.642,2475.0,2474.7,6.01433495]
[1747497258878,7.642,2475.1,2474.7,6.01433495]
[1747497259466,11.68229739,2475.1,2474.7,6.01433495]
[1747497259967,11.68229739,2475.1,2474.7,1.97352445]
[1747497260160,11.68229739,2475.1,2474.7,1.6399515]
[1747497260355,11.68229739,2475.1,2474.7,5.46441542]
[1747497260561,11.68229739,2475.1,2474.7,5.46440924]
[1747497261058,7.642,2475.1,2474.7,5.46440924]
[1747497261262,7.642,2475.2,2474.9,4.04048484]
[1747497261461,7.642,2475.2,2474.8,9.07008092]
[1747497262179,11.68214804,2475.2,2474.9,0.48240172]
[1747497263274,4.04014804,2475.2,2474.9,0.48240172]
[1747497263437,4.04014804,2475.2,2474.9,2.31012402]
[1747497263634,11.68199813,2475.3,2474.9,6.35065353]
[1747497263874,11.68199813,2475.3,2475.0,0.8037]
[1747497264077,7.642,2475.3,2475.0,0.8037]
[1747497264674,4.03965531,2475.5,2475.1,0.55]
[1747497264866,11.68165531,2475.5,2475.1,0.55]
[1747497265583,7.641,2475.5,2475.1,1.72446586]
[1747497265743,7.641,2475.5,2475.3,0.8037]
[1747497266477,11.68060367,2475.5,2475.3,0.8037]
[1747497267470,4.03960367,2475.5,2475.3,0.8037]
[1747497270975,11.6804979,2475.6,2475.3,0.8037]
[1747497271473,1.60014445,2477.9,2475.4,0.55]